fUST/lending_fUST_20240322
["ID","MTS","AMOUNT","RATE_DAILY","PERIOD"]
[319977674,1711047046931,-4158.56,0.00030136,2]
[319977676,1711047046940,-500.0,0.00030136,2]
[319977678,1711047046949,-1604.78,0.00030136,2]
[319977680,1711047046959,-500.0,0.00030136,2]
[319977682,1711047046968,-721.53,0.00030136,2]
[319977684,1711047046977,-500.0,0.00030136,2]
[319977686,1711047046988,-500.0,0.00030136,2]
[319977688,1711047046997,-614.92,0.00030136,2]
[319977690,1711047047007,-502.5342667,0.00030136,2]
[319977693,1711047047017,-882.73,0.00030136,2]
[319977695,1711047047027,-500.03090702,0.00030136,2]
[319977697,1711047047036,-500.0,0.00030136,2]
[319977698,1711047047045,-500.0,0.00030136,2]
[319977700,1711047047054,-500.0,0.00030136,2]
[319977702,1711047047063,-500.0,0.00030136,2]
[319977704,1711047047071,-500.0,0.00030136,2]
[319977706,1711047047081,-500.0,0.00030136,2]
[319977708,1711047047091,-5097.26,0.00030136,2]
[319977710,1711047047100,-1080.37,0.00030136,2]
[319977712,1711047047110,-500.0,0.00030136,2]
[319977714,1711047047119,-500.0,0.00030136,2]
[319977716,1711047047128,-1028.43,0.00030136,2]
[319977718,1711047047137,-500.0,0.00030136,2]
[319977720,1711047047146,-813.63,0.00030136,2]
[319977722,1711047047155,-1914.16,0.00030136,2]
[319977724,1711047047164,-2254.18,0.00030136,2]
[319977726,1711047047173,-830.2,0.00030136,2]
[319977728,1711047047182,-500.0,0.00030136,2]
[319977730,1711047047191,-500.0,0.00030136,2]
[319977732,1711047047201,-500.0,0.00030136,2]
[319977734,1711047047210,-508.93602551,0.00030136,2]
[319977736,1711047047219,-3349.12,0.00030136,2]
[319977738,1711047047227,-685.0812336,0.00030136,2]
[319977740,1711047047239,-216.5887664,0.00030136,2]
[319977742,1711047047248,-500.0,0.00030136,2]
[319977744,1711047047257,-500.0,0.00030136,2]
[319977746,1711047047266,-115.88836949,0.00030136,2]
[319977748,1711047047276,-817.51163051,0.00030136,2]
[319977750,1711047047286,-500.0,0.00030136,2]
[319977752,1711047047295,-1904.54,0.00030136,2]
[319977754,1711047047304,-2709.0,0.00030136,2]
[319977756,1711047047313,-500.0,0.00030136,2]
[319977758,1711047047322,-500.0,0.00030136,2]
[319977760,1711047047331,-1738.9,0.00030136,2]
[319977762,1711047047343,-500.0,0.00030136,2]
[319977764,1711047047352,-548.97,0.00030136,2]
[319977765,1711047047361,-3079.13,0.00030136,2]
[319977766,1711047047371,-11989.08,0.00030136,2]
[319977768,1711047047381,-500.0,0.00030136,2]
[319977770,1711047047390,-500.0,0.00030136,2]
[319977771,1711047047399,-9502.48,0.00030136,2]
[319977773,1711047047409,-500.0,0.00030136,2]
[319977775,1711047047418,-1428.81,0.00030136,2]
[319977776,1711047047427,-500.0,0.00030136,2]
[319977777,1711047047436,-503.09579946,0.00030136,2]
[319977778,1711047047445,-500.0,0.00030136,2]
[319977779,1711047047454,-500.0,0.00030136,2]
[319977780,1711047047464,-460.51612104,0.00030136,2]
[319979015,1711047089163,500.0,0.00030232,120]
[319979016,1711047089847,247.0,0.00030232,120]
[319979034,1711047701748,500.0,0.00026235,30]
[319979036,1711048161152,-6910.75868566,0.00025,2]
[319979037,1711048161175,-920.83884023,0.00025,2]
[319979091,1711048231915,-6501.48028108,0.00025,2]
[319979092,1711048231925,-166.666666,0.00028371,2]
[319979093,1711048231934,-24880.0,0.00028519,2]
[319979094,1711048231943,-4146.2419081,0.00028555,2]
[319979096,1711048231953,-166.666666,0.00029144,2]
[319979098,1711048231962,-537.21128666,0.00029538,2]
[319979100,1711048231971,-1000.0,0.00029836,2]
[319979102,1711048231980,-166.666666,0.00029918,2]
[319979103,1711048231989,-27357.18561482,0.00029936,2]
[319979106,1711048232000,-33882.00407438,0.00029936,2]
[319979108,1711048232011,-48663.99640999,0.00029936,2]
[319979173,1711048237894,-397.55163141,0.00029936,2]
[319979399,1711048240127,-470.49417695,0.00029936,2]
[319979691,1711048242995,-1041.968,0.00029936,2]
[319979697,1711048243054,-982.51720875,0.00029936,2]
[319980992,1711048360373,218.96,0.000199,18]
[319981094,1711049432069,-17562.09744137,0.00025282,2]
[319981097,1711049432081,-331.81337513,0.00025282,2]
[319981099,1711049432090,-2186.76172906,0.0002619,2]
[319981100,1711049432099,-1659.0989862,0.000262,30]
[319981104,1711049432127,-274.2680496,0.000262,30]
[319982126,1711049443316,-0.0402386,0.000262,30]
[319982219,1711049446117,-66.5927256,0.000262,30]
[319982221,1711049446127,-2000.0,0.0002621,30]
[319982223,1711049446136,-2000.0,0.0002622,30]
[319982225,1711049446145,-2000.0,0.0002623,30]
[319982227,1711049446154,-2000.0,0.0002624,30]
[319982229,1711049446163,-2000.0,0.0002625,30]
[319982232,1711049446173,-2000.0,0.0002626,30]
[319982234,1711049446183,-2000.0,0.0002627,30]
[319982236,1711049446192,-2000.0,0.0002628,30]
[319982238,1711049446201,-551.61536399,0.0002629,30]
[319982242,1711049446236,-1448.38463601,0.0002629,30]
[319982244,1711049446245,-2624.249213,0.000263,30]
[319982246,1711049446254,-166.666666,0.00027397,2]
[319982248,1711049446263,-166.666666,0.00028038,2]
[319982250,1711049446272,-195.219154,0.00028653,2]
[319982252,1711049446281,-166.666666,0.00028679,2]
[319982254,1711049446290,-166.666666,0.00029321,2]
[319982256,1711049446299,-1000.0,0.00029736,2]
[319982258,1711049446309,-285.67769009,0.00029835,2]
[319982260,1711049446318,-173194.58494924,0.00029836,2]
[319982262,1711049446327,-175.92767078,0.00029836,2]
[319982264,1711049446337,-175.92767074,0.00029886,2]
[319982266,1711049446347,-155.29322121,0.00029936,2]
[319982268,1711049446355,-750.26678896,0.00029936,2]
[319982270,1711049446366,-175.92767074,0.00029936,2]
[319982272,1711049446375,-166.666666,0.00029962,2]
[319982274,1711049446384,-175.92767074,0.00029986,2]
[319982276,1711049446393,-175.92767074,0.00030036,2]
[319982278,1711049446403,-400.0,0.000301,2]
[319982280,1711049446412,-189.29786483,0.00030134,4]
[319982282,1711049446422,-342.88077417,0.00030135,4]
[319982284,1711049446431,-500.0,0.00030136,2]
[319982286,1711049446440,-500.0,0.00030136,2]
[319982288,1711049446450,-502.29965063,0.00030136,2]
[319982290,1711049446459,-500.0,0.00030136,2]
[319982292,1711049446472,-500.0,0.00030136,2]
[319982294,1711049446481,-500.0,0.00030136,2]
[319982296,1711049446490,-459.14784182,0.00030136,2]
[319982298,1711049446499,-215.07652844,0.00030136,2]
[319982300,1711049446508,-500.0,0.00030136,2]
[319982302,1711049446517,-500.0,0.00030136,2]
[319982304,1711049446526,-646.07691587,0.00030136,2]
[319982306,1711049446535,-500.0,0.00030136,2]
[319982308,1711049446544,-500.0,0.00030136,2]
[319982310,1711049446554,-500.0,0.00030136,2]
[319982312,1711049446563,-360.90269145,0.00030136,2]
[319982314,1711049446573,-500.0,0.00030136,2]
[319982317,1711049446585,-558.75,0.00030136,2]
[319982319,1711049446594,-1537.91,0.00030136,2]
[319982321,1711049446603,-500.0,0.00030136,2]
[319982323,1711049446613,-501.43505296,0.00030136,2]
[319982325,1711049446622,-500.0,0.00030136,2]
[319982327,1711049446631,-500.0,0.00030136,2]
[319982329,1711049446641,-500.0,0.00030136,2]
[319982331,1711049446653,-419.57534358,0.00030136,2]
[319982742,1711049590446,155.1421026,0.00019,2]
[319982743,1711049630558,312.94649189,0.00019,2]
[319982744,1711049633791,154.90705577,0.00019,2]
[319982745,1711049637646,15975.1099319,0.00019,2]
[319982746,1711049639947,154.90705577,0.00019,2]
[319982747,1711049640157,19049.86063308,0.00019,2]
[319982748,1711049641208,687.89347292,0.00019,2]
[319982749,1711049643183,154.90705577,0.00019,2]
[319982750,1711049644567,312.94649189,0.00019,2]
[319982751,1711049645566,160.71175292,0.00018999,2]
[319982752,1711049653623,661.70795549,0.00019,2]
[319982753,1711049653662,13000.16765188,0.00019,2]
[319982754,1711049653800,154.90705577,0.00019,2]
[319982755,1711049654158,7735.26366513,0.00019,2]
[319982756,1711049654189,11314.59696795,0.00019,2]
[319982757,1711049655189,687.89347292,0.00019,2]
[319982758,1711049659923,154.90705577,0.00019,2]
[319982759,1711049661187,157.10049918,0.00019,2]
[319982760,1711049662572,312.94649189,0.00019,2]
[319982761,1711049670134,10897.00854229,0.00019,2]
[319982762,1711049671782,154.90705577,0.00019,2]
[319982763,1711049675194,687.89347292,0.00019,2]
[319982764,1711049679930,154.90705577,0.00019,2]
[319982765,1711049680549,312.94649189,0.00019,2]
[319982767,1711049693800,156.95470021,0.00019,2]
[319982768,1711049695254,687.89347292,0.00019,2]
[319982769,1711049698563,232.5967018,0.00019,2]
[319982770,1711049699944,196.01375401,0.00019,2]
[319982771,1711049711248,687.89347292,0.00019,2]
[319982772,1711049729260,687.89347292,0.00019,2]
[319982773,1711049743248,687.89347292,0.00019,2]
[319982774,1711049761255,687.89347292,0.00019,2]
[319982775,1711049777383,306.63902381,0.00019,2]
[319982776,1711049895086,-783.92935157,0.00021628,2]
[319982777,1711049895106,-863.54495364,0.00021629,2]
[319982778,1711049895125,-683.361148,0.0002163,2]
[319982779,1711049895145,-154.87609912,0.00021631,2]
[319982780,1711049895164,-383.2869475,0.00021632,2]
[319982781,1711049895184,-3150.61692262,0.00022467,2]
[319982782,1711049895203,-322.53706921,0.00022468,2]
[319982783,1711049895223,-5537.80860274,0.00022468,2]
[319982784,1711049895243,-3440.63514062,0.00022469,2]
[319982785,1711049895262,-4650.2866953,0.00022476,2]
[319982786,1711049895322,210.10239028,0.00021628,2]
[319982787,1711049896925,187.60782747,0.00021628,2]
[319982788,1711049897028,4531.40685193,0.00022,2]
[319982798,1711050396347,-1043.50589469,0.00020951,2]
[319982799,1711050396374,-322.53706921,0.00020951,2]
[319982800,1711050396399,-337.25890332,0.00020952,2]
[319982801,1711050396431,-187.60782747,0.00020953,2]
[319982802,1711050396457,-200.0,0.00020964,2]
[319982803,1711050396483,-5537.80860274,0.00021,2]
[319982804,1711050396509,-272.33517261,0.00021223,2]
[319982805,1711050463894,1086.77973015,0.00020368,2]
[319982806,1711050514122,421.23535759,0.00020368,5]
[319982807,1711050514393,1570.19787908,0.00020368,2]
[319982808,1711050530105,421.23535759,0.00020368,5]
[319982809,1711050530382,1570.19787908,0.00020368,2]
[319982810,1711050544109,421.23535759,0.00020368,5]
[319982811,1711050550371,1570.19787908,0.00020368,2]
[319982812,1711050564113,421.23535759,0.00020368,5]
[319982813,1711050566374,1570.19787908,0.00020368,2]
[319982814,1711050582119,421.23535759,0.00020368,5]
[319982815,1711050582375,1191.91154737,0.00020368,2]
[319982816,1711050602123,339.45491334,0.00020368,5]
[319982842,1711050632822,-3000.0,0.00020935,2]
[319982843,1711050632832,-1986.5479574,0.0002094,2]
[319982844,1711050632841,-158.258108,0.0002094,2]
[319982845,1711050632851,-200.0,0.00021101,2]
[319982846,1711050632860,-1771.2217488,0.00021213,2]
[319982847,1711050632873,-597.004215,0.00021236,2]
[319982849,1711050632883,-187.60782747,0.00021949,2]
[319982851,1711050632892,-576.276625,0.0002195,2]
[319982853,1711050632902,-300.0,0.00021999,2]
[319982855,1711050632911,-5537.80860274,0.0002222,2]
[319982857,1711050632920,-24900.0,0.00022221,2]
[319982859,1711050632929,-177.902343,0.00022538,2]
[319982861,1711050632938,-933.4973392,0.00023003,2]
[319982863,1711050632947,-453.14894079,0.00023129,2]
[319982865,1711050632956,-500.0,0.0002332,2]
[319982867,1711050632965,-166.75055813,0.0002332,2]
[319982869,1711050632974,-687.59094947,0.00023859,2]
[319982871,1711050632983,-154.92253873,0.00024,2]
[319982873,1711050632994,-155.49001657,0.00024254,2]
[319982875,1711050633004,-474.24563441,0.00024346,2]
[319982877,1711050633015,-183.22903236,0.00024346,2]
[319982878,1711050633024,-1849.03296229,0.00024346,2]
[319982880,1711050633033,-527.15712327,0.00024346,2]
[319982881,1711050633042,-221.62815888,0.00024346,2]
[319982882,1711050633052,-296.68818945,0.00024347,2]
[319982883,1711050633061,-394.73238337,0.00024347,2]
[319982884,1711050633070,-2948.97047289,0.00024347,2]
[319982885,1711050633079,-517.89942679,0.00024349,2]
[319982886,1711050633089,-20458.67494717,0.0002435,30]
[319982887,1711050633221,-12505.46401814,0.0002435,30]
[319982888,1711050636248,8635.0,0.0002,2]
[319983205,1711050641210,-19649.58228765,0.0002435,30]
[319983207,1711050641223,-2750.41201235,0.0002435,30]
[319983209,1711050641232,-323.68323187,0.00024354,2]
[319983211,1711050641241,-234.78242897,0.00024354,2]
[319983213,1711050641250,-165.81858022,0.00024446,2]
[319983215,1711050641259,-309.75221062,0.00024545,2]
[319983217,1711050641268,-215.89741008,0.00024545,2]
[319983218,1711050641277,-9122.65156115,0.00024546,2]
[319983221,1711050641289,-9814.65,0.00024546,2]
[319983417,1711050643393,-4956.4177495,0.00024546,2]
[319983427,1711050643480,-622.85103261,0.00024546,2]
[319983429,1711050643495,-985.3056675,0.00024546,2]
[319983774,1711050647327,-8450.84136019,0.00024546,2]
[319983776,1711050647338,-469.98746995,0.00024548,2]
[319983778,1711050647348,-1476.73003936,0.00024548,2]
[319983780,1711050647359,-406.16093233,0.00024549,2]
[319983782,1711050647371,-1955.0440075,0.00024549,2]
[319983784,1711050647384,-380.0,0.00024658,2]
[319983787,1711050647395,-199.3934563,0.00025182,2]
[319983789,1711050647406,-1086.77973015,0.00025368,2]
[319983791,1711050647417,-210.224084,0.0002542,2]
[319983793,1711050647428,-2886.531763,0.00025497,2]
[319983795,1711050647438,-1331.62420796,0.00025616,10]
[319983798,1711050647449,-155.49001653,0.00025691,2]
[319983800,1711050647460,-199.1940513,0.000261,2]
[319983802,1711050647471,-150.0,0.000262,30]
[319983804,1711050647482,-155.49001653,0.00027127,2]
[319983806,1711050647494,-210.224084,0.00027199,2]
[319983809,1711050647504,-500.0,0.00027397,2]
[319983811,1711050647515,-500.0,0.00027397,2]
[319983813,1711050647525,-500.0,0.00027397,2]
[319983815,1711050647537,-500.0,0.00027397,2]
[319983817,1711050647549,-500.0,0.00027397,2]
[319983819,1711050647560,-500.0,0.00027397,2]
[319983822,1711050647572,-500.0,0.00027397,2]
[319983824,1711050647583,-500.0,0.00027397,2]
[319983826,1711050647594,-500.0,0.00027397,2]
[319983828,1711050647605,-500.0,0.00027397,2]
[319983830,1711050647616,-500.0,0.00027397,2]
[319983832,1711050647629,-500.0,0.00027397,2]
[319983835,1711050647640,-500.0,0.00027397,2]
[319983837,1711050647650,-497.17129815,0.00027397,2]
[319983896,1711050648524,-2.82870185,0.00027397,2]
[319983897,1711050648536,-500.0,0.00027397,2]
[319983898,1711050648549,-500.0,0.00027397,2]
[319983899,1711050648561,-500.0,0.00027397,2]
[319983900,1711050648574,-500.0,0.00027397,2]
[319983901,1711050648586,-500.0,0.00027397,2]
[319983902,1711050648598,-500.0,0.00027397,2]
[319983903,1711050648611,-500.0,0.00027397,2]
[319983904,1711050648626,-500.0,0.00027397,2]
[319983905,1711050648640,-500.0,0.00027397,2]
[319983906,1711050648653,-500.0,0.00027397,2]
[319983907,1711050648665,-500.0,0.00027397,2]
[319983908,1711050648678,-500.0,0.00027397,2]
[319983909,1711050648690,-500.0,0.00027397,2]
[319983910,1711050648701,-500.0,0.00027397,2]
[319983911,1711050648713,-500.0,0.00027397,2]
[319983912,1711050648724,-500.0,0.00027397,2]
[319983913,1711050648735,-355.38032636,0.00027397,2]
[319983914,1711050648746,-500.0,0.00027397,2]
[319983915,1711050648757,-500.0,0.00027397,2]
[319983916,1711050648768,-500.0,0.00027397,2]
[319983917,1711050648779,-500.0,0.00027397,2]
[319983918,1711050648790,-500.0,0.00027397,2]
[319983919,1711050648801,-500.0,0.00027397,2]
[319983920,1711050648812,-166.528323,0.00027397,2]
[319983921,1711050648823,-166.528323,0.00028038,2]
[319983922,1711050648833,-155.49001653,0.00028564,2]
[319983923,1711050648845,-166.528323,0.00028679,2]
[319983924,1711050648857,-166.528323,0.00029321,2]
[319983925,1711050648869,-1000.0,0.000295,2]
[319983926,1711050648881,-307.90196632,0.00029834,2]
[319983927,1711050648890,-669.71033152,0.00029834,2]
[319983928,1711050648899,-3577.80246104,0.00029835,2]
[319983945,1711050649068,-166.528323,0.00029962,2]
[319983947,1711050649079,-641.41825796,0.0003,4]
[319983949,1711050649089,-155.49001653,0.0003,2]
[319983951,1711050649098,-146573.80656713,0.00030036,2]
[319983965,1711050649226,-15834.25047986,0.00030036,2]
[319985754,1711050859833,-9879.31775361,0.00024346,2]
[319985755,1711050859857,-1000.0,0.00024446,2]
[319985756,1711050859879,-289.86864955,0.00024545,2]
[319985757,1711050859901,-4664.81359684,0.00025,2]
[319985759,1711050875915,2536.23858563,0.0002,2]
[319985764,1711050926667,-16493.0,0.00021,2]
[319985861,1711051832826,-154.84515485,0.00020999,2]
[319985862,1711051832839,-599.4777159,0.00021,2]
[319985864,1711051832851,-424.94674482,0.00021,2]
[319985865,1711051832863,-362.25991005,0.000229,2]
[319985866,1711051832876,-3000.0,0.0002463,2]
[319985867,1711051832888,-2847.57407914,0.000249,2]
[319985869,1711051832901,-2245.94508882,0.00025,2]
[319985871,1711051832914,-4650.2866953,0.00025113,2]
[319985873,1711051832926,-288.138312,0.00025608,2]
[319985876,1711051832940,-12176.21718124,0.00026801,2]
[319985964,1711051838531,-485.04786657,0.00026801,2]
[319985965,1711051838545,-12055.20036932,0.00026801,2]
[319985966,1711051838597,-183.53458287,0.00026801,2]
[319985967,1711051838609,-177.387813,0.0002759,2]
[319985968,1711051838619,-287.62760413,0.000279,2]
[319985979,1711051840597,-74.63230592,0.000279,2]
[319985980,1711051840608,-177.387813,0.00029471,2]
[319985981,1711051840618,-500.0,0.00030034,2]
[319985982,1711051840808,-500.0,0.00030034,2]
[319985983,1711051840827,-500.0,0.00030034,2]
[319985984,1711051840837,-432.33526739,0.00030034,2]
[319985985,1711051840847,-500.0,0.00030034,2]
[319985986,1711051840857,-500.0,0.00030034,2]
[319985987,1711051840866,-500.0,0.00030034,2]
[319985988,1711051840875,-500.0,0.00030034,2]
[319985989,1711051840885,-7440.43382326,0.00030035,4]
[319985990,1711051840895,-1355.21079044,0.00030036,2]
[319985991,1711051840907,-3235.5,0.00030036,2]
[319986476,1711051847910,-0.49196431,0.00030034,2]
[319986523,1711051848556,-324.495,0.00030034,2]
[319986524,1711051848569,-213.30652674,0.00030034,2]
[319986525,1711051848582,-232.65716621,0.00030034,2]
[319986526,1711051848591,-11905.74171927,0.00030036,2]
[319986527,1711051848600,-1008.03599284,0.00030036,4]
[319986528,1711051848609,-400.0,0.000301,2]
[319986529,1711051848619,-405.14954919,0.00030134,4]
[319986530,1711051848628,-184.26997594,0.00030134,4]
[319986531,1711051848638,-155.00471169,0.00030134,4]
[319986532,1711051848647,-367.16265237,0.00030134,4]
[319986533,1711051848656,-395.5743758,0.00030134,4]
[319986534,1711051848665,-715.3469906,0.00030134,4]
[319986535,1711051848674,-154.87609912,0.00030134,4]
[319986536,1711051848683,-205.08485362,0.00030134,4]
[319986537,1711051848692,-799.99269876,0.00030134,120]
[319986538,1711051848701,-580.31223003,0.00030134,4]
[319986539,1711051848710,-187.60782747,0.00030134,2]
[319986540,1711051848718,-3150.61692262,0.00030134,4]
[319986541,1711051848727,-210.10239028,0.00030134,4]
[319986542,1711051848736,-3440.63514062,0.00030134,4]
[319986543,1711051848744,-322.53706921,0.00030134,4]
[319986544,1711051848753,-999.10500974,0.00030134,4]
[319986545,1711051848763,-269.83823354,0.00030134,4]
[319986546,1711051848772,-212.37767704,0.00030134,4]
[319986547,1711051848782,-365.36982803,0.00030134,2]
[319986548,1711051848790,-210.95504491,0.00030134,4]
[319986549,1711051848800,-290.98092274,0.00030135,4]
[319986550,1711051848809,-4956.4177495,0.00030135,4]
[319986551,1711051848818,-155.52982952,0.00030136,2]
[319986552,1711051848826,-186.33152971,0.00030136,4]
[319986553,1711051848835,-3218.45073704,0.00030136,4]
[319986554,1711051848844,-324.03136722,0.00030136,3]
[319986555,1711051848853,-500.0,0.00030136,2]
[319986556,1711051848862,-654.8,0.00030136,2]
[319986557,1711051848871,-500.0,0.00030136,2]
[319986558,1711051848880,-500.0,0.00030136,2]
[319986559,1711051848890,-500.0,0.00030136,2]
[319986560,1711051848899,-258.16621119,0.00030136,2]
[319986561,1711051848908,-933.96,0.00030136,2]
[319986562,1711051848917,-500.0,0.00030136,2]
[319986563,1711051848926,-500.0,0.00030136,2]
[319986564,1711051848936,-500.73482271,0.00030136,2]
[319986565,1711051848945,-1345.39,0.00030136,2]
[319986566,1711051848953,-501.32276943,0.00030136,2]
[319986567,1711051848964,-500.0,0.00030136,2]
[319986568,1711051848978,-500.0,0.00030136,2]
[319986569,1711051848988,-500.0,0.00030136,2]
[319986570,1711051848997,-500.0,0.00030136,2]
[319986571,1711051849010,-500.0,0.00030136,2]
[319986572,1711051849022,-500.0,0.00030136,2]
[319986573,1711051849036,-500.0,0.00030136,2]
[319986574,1711051849045,-500.0,0.00030136,2]
[319986575,1711051849056,-500.0,0.00030136,2]
[319986576,1711051849065,-500.0,0.00030136,2]
[319986577,1711051849075,-726.08,0.00030136,2]
[319986578,1711051849085,-500.0,0.00030136,2]
[319986580,1711051849095,-500.0,0.00030136,2]
[319986582,1711051849104,-569.8305248,0.00030136,2]
[319986584,1711051849113,-500.0,0.00030136,2]
[319986586,1711051849122,-500.0,0.00030136,30]
[319986587,1711051849133,-86.31285049,0.00030136,2]
[319988515,1711053032803,-1600.0,0.00025,2]
[319988517,1711053032814,-4398.09298226,0.000273,2]
[319988519,1711053032823,-177.387813,0.00027397,2]
[319988527,1711053032962,-750.6306311,0.00027615,2]
[319988528,1711053032972,-615.37638664,0.00027663,2]
[319988529,1711053032982,-300.0,0.00027664,2]
[319988530,1711053032992,-24900.0,0.00027665,2]
[319988531,1711053033001,-200.0,0.00027665,2]
[319988532,1711053033010,-288.138312,0.00027774,2]
[319988533,1711053033019,-150.0,0.00028036,2]
[319988534,1711053033029,-260.28769548,0.00028249,2]
[319988535,1711053033039,-179.82100763,0.00028459,4]
[319988536,1711053033048,-337.25890332,0.00028627,2]
[319988537,1711053033058,-177.902343,0.00028998,2]
[319988539,1711053033068,-1043.50589469,0.00029531,2]
[319988540,1711053033078,-2000.0,0.00029815,2]
[319988542,1711053033087,-500.0,0.00029999,2]
[319988544,1711053033096,-169.98849354,0.00029999,2]
[319988546,1711053033106,-1072.32623552,0.0003,17]
[319988548,1711053033116,-14073.26857262,0.0003,2]
[319988550,1711053033128,-150.0,0.0003,2]
[319988552,1711053033138,-1116.54101561,0.00030036,2]
[319988554,1711053033148,-400.0,0.000301,2]
[319988556,1711053033157,-1201.22022917,0.0003013,2]
[319988558,1711053033167,-156.60735728,0.00030134,4]
[319988560,1711053033176,-154.89810263,0.00030134,4]
[319988562,1711053033186,-171.2784482,0.00030134,4]
[319988564,1711053033195,-5537.80860374,0.00030134,4]
[319988566,1711053033205,-187.60782747,0.00030134,2]
[319988568,1711053033214,-322.53706921,0.00030134,4]
[319988570,1711053033223,-487.60586264,0.00030135,4]
[319988572,1711053033232,-411.54647179,0.00030135,4]
[319988575,1711053033248,-573.75919571,0.00030135,4]
[319988577,1711053033258,-156.58706916,0.00030135,2]
[319988579,1711053033267,-465.33383066,0.00030135,2]
[319988581,1711053033275,-1008.03599284,0.00030136,4]
[319988583,1711053033285,-464.13063294,0.00030136,2]
[319988584,1711053033294,-238.57055994,0.00030136,4]
[319988586,1711053033304,-500.0,0.00030136,2]
[319988588,1711053033313,-501.5043868,0.00030136,2]
[319988590,1711053033323,-513.87307003,0.00030136,2]
[319988592,1711053033332,-500.0,0.00030136,2]
[319988594,1711053033341,-500.0,0.00030136,2]
[319988596,1711053033351,-225.16085229,0.00030136,2]
[319988598,1711053033361,-500.0,0.00030136,2]
[319988600,1711053033370,-500.0,0.00030136,2]
[319988602,1711053033381,-500.69777511,0.00030136,2]
[319988604,1711053033391,-500.0,0.00030136,2]
[319988606,1711053033400,-500.0,0.00030136,2]
[319988608,1711053033409,-500.0,0.00030136,2]
[319988610,1711053033419,-500.0,0.00030136,2]
[319988611,1711053033428,-500.0,0.00030136,2]
[319988612,1711053033437,-500.0,0.00030136,2]
[319988614,1711053033446,-535.47,0.00030136,2]
[319988616,1711053033455,-1473.83,0.00030136,2]
[319988618,1711053033465,-500.0,0.00030136,2]
[319988620,1711053033474,-500.0,0.00030136,2]
[319988622,1711053033484,-500.0,0.00030136,2]
[319988624,1711053033493,-500.0,0.00030136,2]
[319988626,1711053033502,-500.0,0.00030136,2]
[319988628,1711053033511,-170.27193861,0.00030136,2]
[319988630,1711053033520,-12891.63876467,0.00030136,4]
[319988631,1711053033530,-500.0,0.00030136,2]
[319988633,1711053033539,-500.0,0.00030136,2]
[319988635,1711053033549,-1666.44,0.00030136,2]
[319988637,1711053033558,-500.0,0.00030136,2]
[319988639,1711053033568,-500.0,0.00030136,2]
[319988642,1711053033578,-500.0,0.00030136,2]
[319988644,1711053033588,-500.0,0.00030136,2]
[319988646,1711053033597,-501.01403778,0.00030136,2]
[319988648,1711053033607,-500.0,0.00030136,2]
[319988650,1711053033618,-529.93,0.00030136,2]
[319988652,1711053033629,-500.0,0.00030136,2]
[319988654,1711053033639,-500.0,0.00030136,2]
[319988656,1711053033648,-408.24247577,0.00030136,2]
[319988658,1711053033657,-500.0,0.00030136,2]
[319988660,1711053033667,-500.0,0.00030136,2]
[319988662,1711053033677,-500.0,0.00030136,2]
[319988664,1711053033686,-500.0,0.00030136,2]
[319988666,1711053033695,-500.0,0.00030136,2]
[319988668,1711053033704,-500.0,0.00030136,2]
[319988670,1711053033714,-500.0,0.00030136,2]
[319988672,1711053033723,-500.0,0.00030136,2]
[319988674,1711053033732,-500.0,0.00030136,2]
[319988676,1711053033743,-500.0,0.00030136,2]
[319988678,1711053033753,-500.0,0.00030136,2]
[319988680,1711053033762,-500.0,0.00030136,2]
[319988682,1711053033771,-500.0,0.00030136,2]